fUSD/lending_fUSD_20260506
["ID","MTS","AMOUNT","RATE_DAILY","PERIOD"]
[421729532,1778073044000,-162.52,0.00024658,2]
[421729530,1778073044000,-1000.0,0.00024658,2]
[421729531,1778073044000,-155.34,0.00024658,2]
[421729535,1778073044000,-5256.741277,0.00025307,14]
[421729537,1778073044000,-5697.22,0.00025786,2]
[421729538,1778073044000,-155.34,0.00026027,7]
[421729536,1778073044000,-822.55,0.00025786,2]
[421729541,1778073044000,-238.64,0.00026203,2]
[421729540,1778073044000,-1000.0,0.00026027,35]
[421729553,1778073044000,-1500.0,0.00027397,2]
[421729544,1778073044000,-4475.0,0.00026572,2]
[421729543,1778073044000,-177.96,0.00026514,2]
[421729545,1778073044000,-1205.88,0.00026591,2]
[421729546,1778073044000,-1912.812094,0.00027,2]
[421729547,1778073044000,-511.0,0.00027137,2]
[421729558,1778073044000,-183.504186,0.00027397,2]
[421729560,1778073044000,-183.504186,0.00027397,2]
[421729561,1778073044000,-183.504186,0.00027397,2]
[421729559,1778073044000,-183.504186,0.00027397,2]
[421729548,1778073044000,-150.3,0.0002719,2]
[421729549,1778073044000,-1314.185319,0.00027391,14]
[421729550,1778073044000,-155.54,0.00027397,2]
[421729542,1778073044000,-874.6,0.00026296,2]
[421729594,1778073044000,-200.0,0.00028767,60]
[421729539,1778073044000,-162.52,0.00026027,7]
[421729589,1778073044000,-5256.741277,0.00028608,14]
[421729634,1778073044000,-151.0,0.000299,7]
[421729635,1778073044000,-175.773684,0.000299,7]
[421729632,1778073044000,-332.843692,0.000299,7]
[421729630,1778073044000,-332.843692,0.000299,7]
[421729628,1778073044000,-214.60306816,0.000299,7]
[421729631,1778073044000,-332.843692,0.000299,7]
[421729633,1778073044000,-175.773684,0.000299,7]
[421729637,1778073044000,-175.773684,0.000299,7]
[421729647,1778073044000,-214.60306816,0.00029948,10]
[421729636,1778073044000,-151.0,0.000299,7]
[421729643,1778073044000,-1015.29,0.00029926,30]
[421729629,1778073044000,-332.843692,0.000299,7]
[421729639,1778073044000,-175.773684,0.000299,7]
[421729645,1778073044000,-2000.0,0.00029937,7]
[421729640,1778073044000,-1015.29,0.000299,30]
[421729644,1778073044000,-1015.29,0.00029935,30]
[421729642,1778073044000,-1015.29,0.00029917,30]
[421729646,1778073044000,-1015.29,0.00029943,30]
[421729648,1778073044000,-4507.0,0.00029948,10]
[421729651,1778073044000,-1015.29,0.0002997,30]
[421729652,1778073044000,-1015.29,0.00029978,30]
[421729649,1778073044000,-1015.29,0.00029952,30]
[421729650,1778073044000,-1015.29,0.00029961,30]
[421729596,1778073044000,-200.0,0.00028767,60]
[421729641,1778073044000,-1015.29,0.00029909,30]
[421729627,1778073044000,-26240.71,0.000299,7]
[421729638,1778073044000,-151.0,0.000299,7]
[421729625,1778073044000,-2000.0,0.00029737,7]
[421729585,1778073044000,-10000.0,0.00028,30]
[421729626,1778073044000,-2000.0,0.00029837,7]
[421729599,1778073044000,-200.0,0.00028767,60]
[421729598,1778073044000,-200.0,0.00028767,60]
[421729603,1778073044000,-200.12842738,0.00029199,2]
[421729602,1778073044000,-812.26164592,0.00029137,7]
[421729601,1778073044000,-2473.43551206,0.00029,4]
[421729613,1778073044000,-2000.0,0.00029437,7]
[421729612,1778073044000,-2000.0,0.00029337,7]
[421729607,1778073044000,-151.0,0.00029199,7]
[421729605,1778073044000,-151.0,0.00029199,7]
[421729606,1778073044000,-151.0,0.00029199,7]
[421729604,1778073044000,-1846.70440888,0.00029199,2]
[421729614,1778073044000,-150.0,0.00029534,2]
[421729620,1778073044000,-172.6,0.00029626,7]
[421729609,1778073044000,-2000.0,0.00029237,7]
[421729621,1778073044000,-172.61,0.00029626,30]
[421729623,1778073044000,-511.0,0.00029654,4]
[421729619,1778073044000,-172.6,0.00029626,2]
[421729618,1778073044000,-180.58,0.00029546,30]
[421729622,1778073044000,-2000.0,0.00029637,7]
[421729616,1778073044000,-180.57,0.00029546,2]
[421729615,1778073044000,-2000.0,0.00029537,7]
[421729624,1778073044000,-5088.27358155,0.00029701,2]
[421729617,1778073044000,-180.57,0.00029546,7]
[421729693,1778073045000,-1088.00308642,0.0003013,2]
[421729687,1778073045000,-252.12,0.000301,7]
[421729686,1778073045000,-1015.29,0.00030091,30]
[421729685,1778073045000,-1015.29,0.00030083,30]
[421729683,1778073045000,-1015.29,0.00030065,30]
[421729688,1778073045000,-1015.29,0.000301,30]
[421729690,1778073045000,-1015.29,0.00030109,30]
[421729689,1778073045000,-1563.371732,0.00030101,2]
[421729692,1778073045000,-1015.29,0.00030126,30]
[421729681,1778073045000,-1015.29,0.00030048,30]
[421729691,1778073045000,-1015.29,0.00030117,30]
[421729696,1778073045000,-204.43944946,0.0003013,2]
[421729706,1778073045000,-1015.29,0.00030187,30]
[421729698,1778073045000,-200.0,0.00030137,2]
[421729697,1778073045000,-1015.29,0.00030135,30]
[421729695,1778073045000,-14038.42104733,0.0003013,2]
[421729700,1778073045000,-3958.0,0.00030137,120]
[421729710,1778073045000,-1015.29,0.00030204,30]
[421729702,1778073045000,-1015.29,0.00030152,30]
[421729701,1778073045000,-1015.29,0.00030143,30]
[421729699,1778073045000,-1008.2,0.00030137,2]
[421729703,1778073045000,-1015.29,0.00030161,30]
[421729704,1778073045000,-1015.29,0.0003017,30]
[421729684,1778073045000,-1015.29,0.00030074,30]
[421729694,1778073045000,-364.57,0.0003013,15]
[421729682,1778073045000,-1015.29,0.00030057,30]
[421729655,1778073045000,-1015.29,0.00029996,30]
[421729677,1778073045000,-1015.29,0.00030022,30]
[421729653,1778073045000,-1015.29,0.00029987,30]
[421729705,1778073045000,-1015.29,0.00030178,30]
[421729654,1778073045000,-240.31016824,0.0002999,2]
[421729657,1778073045000,-8000.0,0.0003,3]
[421729656,1778073045000,-433.01436347,0.0003,5]
[421729658,1778073045000,-20133.34531172,0.0003,2]
[421729660,1778073045000,-323.46322501,0.0003,2]
[421729659,1778073045000,-192.90505518,0.0003,10]
[421729661,1778073045000,-1841.84846317,0.0003,2]
[421729662,1778073045000,-200.0,0.0003,2]
[421729667,1778073045000,-207.56617486,0.0003,7]
[421729669,1778073045000,-183.504186,0.0003,7]
[421729680,1778073045000,-1015.29,0.00030039,30]
[421729664,1778073045000,-310.69232647,0.0003,2]
[421729668,1778073045000,-183.504186,0.0003,7]
[421729665,1778073045000,-176756.29886975,0.0003,60]
[421729666,1778073045000,-200.0,0.0003,2]
[421729671,1778073045000,-183.504186,0.0003,7]
[421729672,1778073045000,-200.0,0.0003,2]
[421729670,1778073045000,-183.504186,0.0003,7]
[421729673,1778073045000,-200.0,0.0003,2]
[421729679,1778073045000,-2000.0,0.00030037,7]
[421729678,1778073045000,-1015.29,0.0003003,30]
[421729676,1778073045000,-1015.29,0.00030013,30]
[421729674,1778073045000,-200.0,0.0003,2]
[421729675,1778073045000,-1015.29,0.00030004,30]
[421729663,1778073045000,-165.18283329,0.0003,2]
[421729708,1778073045000,-401.06,0.000302,2]
[421729720,1778073045000,-1250.0,0.00030227,2]
[421729707,1778073045000,-1015.29,0.00030196,30]
[421729749,1778073045000,-10015.53395039,0.00031,120]
[421729747,1778073045000,-500.0,0.00030841,21]
[421729744,1778073045000,-743.57107582,0.00030767,5]
[421729739,1778073045000,-500.0,0.00030639,5]
[421729748,1778073045000,-4884.43800563,0.00031,30]
[421729740,1778073045000,-501.05799506,0.00030639,5]
[421729746,1778073045000,-1630.68247498,0.0003084,2]
[421729745,1778073045000,-253.55632653,0.00030767,5]
[421729742,1778073045000,-500.0,0.00030639,5]
[421729743,1778073045000,-200.0,0.00030737,2]
[421729756,1778073045000,-153.0,0.00031248,30]
[421729755,1778073045000,-159.0,0.00031247,30]
[421729709,1778073045000,-15745.53573555,0.000302,2]
[421729751,1778073045000,-200.0,0.00031037,2]
[421729759,1778073045000,-159.0,0.00031248,30]
[421729753,1778073045000,-408.20814367,0.00031187,5]
[421729752,1778073045000,-272.33326606,0.00031149,2]
[421729758,1778073045000,-158.0,0.00031248,30]
[421729760,1778073045000,-164.0,0.00031248,30]
[421729757,1778073045000,-152.0,0.00031248,30]
[421729762,1778073045000,-153.0,0.00031248,30]
[421729761,1778073045000,-158.0,0.00031248,30]
[421729764,1778073045000,-211.9391706,0.0003137,2]
[421729763,1778073045000,-384.32,0.00031337,2]
[421729765,1778073045000,-26240.71,0.000314,7]
[421729750,1778073045000,-160.0,0.00031,120]
[421729738,1778073045000,-500.0,0.00030639,5]
[421729754,1778073045000,-162.0,0.00031247,30]
[421729735,1778073045000,-1015.29,0.000303,30]
[421729741,1778073045000,-500.0,0.00030639,5]
[421729711,1778073045000,-1015.29,0.00030213,30]
[421729714,1778073045000,-1015.29,0.00030222,30]
[421729712,1778073045000,-500.0,0.00030219,5]
[421729722,1778073045000,-1250.0,0.00030227,2]
[421729723,1778073045000,-1250.0,0.00030227,2]
[421729724,1778073045000,-1138.0,0.00030227,2]
[421729717,1778073045000,-1250.0,0.00030227,2]
[421729718,1778073045000,-1250.0,0.00030227,2]
[421729719,1778073045000,-1250.0,0.00030227,2]
[421729715,1778073045000,-1250.0,0.00030227,2]
[421729716,1778073045000,-1250.0,0.00030227,2]
[421729713,1778073045000,-500.0,0.00030219,5]
[421729726,1778073045000,-874.6,0.00030239,2]
[421729733,1778073045000,-1015.29,0.00030291,30]
[421729721,1778073045000,-1250.0,0.00030227,2]
[421729731,1778073045000,-1015.29,0.00030274,30]
[421729734,1778073045000,-610.0,0.00030297,5]
[421729732,1778073045000,-1015.29,0.00030283,30]
[421729729,1778073045000,-1015.29,0.00030257,30]
[421729730,1778073045000,-1015.29,0.00030265,30]
[421729727,1778073045000,-1015.29,0.00030239,30]
[421729725,1778073045000,-1015.29,0.0003023,30]
[421729728,1778073045000,-1015.29,0.00030248,30]
[421729737,1778073045000,-2000.0,0.00030515,2]
[421729736,1778073045000,-200.0,0.00030437,2]
[421729782,1778073046000,-207.86895535,0.00032,120]
[421729791,1778073046000,-175.773684,0.00032,7]
[421729788,1778073046000,-332.843692,0.00032,7]
[421729783,1778073046000,-183.504186,0.00032,7]
[421729793,1778073046000,-175.773684,0.00032,7]
[421729787,1778073046000,-332.843692,0.00032,7]
[421729792,1778073046000,-151.0,0.00032,7]
[421729794,1778073046000,-151.0,0.00032,7]
[421729786,1778073046000,-183.504186,0.00032,7]
[421729789,1778073046000,-332.843692,0.00032,7]
[421729790,1778073046000,-332.843692,0.00032,7]
[421729795,1778073046000,-175.773684,0.00032,7]
[421729785,1778073046000,-183.504186,0.00032,7]
[421729778,1778073046000,-5805.31096287,0.00032,120]
[421729770,1778073046000,-4507.0,0.00031895,10]
[421729779,1778073046000,-53224.90873783,0.00032,120]
[421729781,1778073046000,-151.0,0.00032,7]
[421729777,1778073046000,-2326.27450502,0.00032,120]
[421729776,1778073046000,-616.2,0.00032,120]
[421729775,1778073046000,-822.55,0.00021273,2]
[421729774,1778073046000,-137450.95770206,0.00032,120]
[421729768,1778073046000,-500.642026,0.00031605,14]
[421729767,1778073046000,-150.0,0.000315,2]
[421729766,1778073046000,-200.06420411,0.000315,2]
[421729772,1778073046000,-169.16180632,0.00032,120]
[421729773,1778073046000,-298.09590881,0.00032,120]
[421729771,1778073046000,-252.12,0.00032,7]
[421729769,1778073046000,-500.0,0.00031766,23]
[421729780,1778073046000,-1756.63741928,0.00032,2]
[421729796,1778073046000,-151.0,0.00032,7]
[421729784,1778073046000,-183.504186,0.00032,7]
[421729799,1778073046000,-151.0,0.00032,7]
[421729827,1778073046000,-159.0,0.00033248,30]
[421729826,1778073046000,-158.0,0.00033248,30]
[421729824,1778073046000,-159.0,0.00033247,30]
[421729823,1778073046000,-8902.55401742,0.00033,2]
[421729825,1778073046000,-153.0,0.00033248,30]
[421729820,1778073046000,-450.0,0.00032904,2]
[421729819,1778073046000,-450.0,0.00032904,2]
[421729818,1778073046000,-450.0,0.00032904,2]
[421729821,1778073046000,-493.0,0.00032904,2]
[421729822,1778073046000,-298.09590881,0.00033,120]
[421729817,1778073046000,-450.0,0.00032904,2]
[421729813,1778073046000,-450.0,0.00032904,2]
[421729814,1778073046000,-450.0,0.00032904,2]
[421729815,1778073046000,-450.0,0.00032904,2]
[421729816,1778073046000,-450.0,0.00032904,2]
[421729810,1778073046000,-501.52296871,0.00032719,24]
[421729800,1778073046000,-151.0,0.00032,7]
[421729797,1778073046000,-175.773684,0.00032,7]
[421729801,1778073046000,-5528.0,0.000321,5]
[421729812,1778073046000,-1880.16398452,0.000328,120]
[421729803,1778073046000,-874.6,0.0003221,5]
[421729808,1778073046000,-164.0,0.00032248,30]
[421729802,1778073046000,-511.0,0.00032172,7]
[421729804,1778073046000,-159.0,0.00032247,30]
[421729807,1778073046000,-159.0,0.00032248,30]
[421729805,1778073046000,-153.0,0.00032248,30]
[421729809,1778073046000,-166.0,0.00032248,30]
[421729811,1778073046000,-4899.63125595,0.000328,2]
[421729806,1778073046000,-158.0,0.00032248,30]
[421729798,1778073046000,-151.0,0.00032,7]
[421729832,1778073047000,-819.4455215,0.00018532,2]
[421729829,1778073047000,-7222.16782292,0.000333,7]
[421729828,1778073047000,-164.0,0.00033248,30]
[421729837,1778073229000,1101.29,0.00027055,120]
[421729839,1778073411000,7008.98837,0.00029533,120]
[421729840,1778073633000,876.123547,0.00028182,120]
[421729841,1778073746000,1314.185319,0.00026852,120]
[421729842,1778073850000,-1384.588105,0.00022822,120]
[421729849,1778074025000,-441.05581612,0.00014602,2]
[421729853,1778074170000,-74.58041232,0.00014602,2]
[421729852,1778074170000,-747.44818388,0.00014602,2]
[421729859,1778074171000,-300.0,0.00014808,2]
[421729860,1778074171000,-622.7222003,0.00014891,2]
[421729858,1778074171000,-300.0,0.00014808,2]
[421729856,1778074171000,-300.0,0.00014676,2]
[421729857,1778074171000,-152.42623429,0.00014791,2]
[421729854,1778074171000,-106.28858768,0.00014602,2]
[421729855,1778074171000,-208.71188682,0.00014639,2]
[421729861,1778074183000,250.0,0.00014,2]
[421729863,1778074207000,349.89,0.0002789,120]
[421729862,1778074207000,349.89,0.00027397,120]
[421729885,1778074232000,-9999.99,0.00015733,2]
[421729884,1778074232000,-150.99,0.00015733,2]
[421729894,1778074232000,-300.0,0.00016062,2]
[421729883,1778074232000,-166.66,0.00015733,2]
[421729874,1778074232000,-374.88995231,0.00014899,2]
[421729880,1778074232000,-1351.09710006,0.00015439,2]
[421729876,1778074232000,-500.0,0.00014899,2]
[421729877,1778074232000,-166.66,0.00015053,2]
[421729878,1778074232000,-200.0,0.00015216,2]
[421729870,1778074232000,-150.0,0.00014898,2]
[421729879,1778074232000,-450.37920878,0.00015239,2]
[421729873,1778074232000,-125.11004769,0.00014899,2]
[421729875,1778074232000,-500.0,0.00014899,2]
[421729882,1778074232000,-2500.0,0.00015714,2]
[421729872,1778074232000,-500.0,0.00014899,2]
[421729869,1778074232000,-300.0,0.00014898,2]
[421729867,1778074232000,-1457.45372859,0.00014891,2]
[421729868,1778074232000,-1200.0,0.00014898,2]
[421729887,1778074232000,-1214.25,0.00015733,2]
[421729871,1778074232000,-1027.43622372,0.00014899,5]
[421729895,1778074232000,-500.0,0.00016062,2]
[421729881,1778074232000,-806.0453382,0.00015439,2]
[421729891,1778074232000,-300.0,0.00016,2]
[421729917,1778074232000,-3563.83,0.00016531,2]
[421729915,1778074232000,-5503.35157469,0.00016531,2]
[421729910,1778074232000,-890.2,0.00016438,2]
[421729908,1778074232000,-2829.34381945,0.00016435,2]
[421729912,1778074232000,-14779.86520081,0.00016531,2]
[421729905,1778074232000,-1680.0,0.00016388,2]
[421729902,1778074232000,-300.0,0.00016307,2]
[421729896,1778074232000,-193.0,0.00016062,2]
[421729903,1778074232000,-500.0,0.00016366,2]
[421729898,1778074232000,-150.0,0.00016092,2]
[421729906,1778074232000,-377.29903517,0.00016434,2]
[421729901,1778074232000,-500.0,0.00016222,2]
[421729900,1778074232000,-8154.06,0.00016116,2]
[421729899,1778074232000,-162.32,0.0001611,2]
[421729897,1778074232000,-250.0,0.00016062,2]
[421729888,1778074232000,-689.49,0.00015733,2]
[421729890,1778074232000,-2236.95670848,0.00015987,2]
[421729893,1778074232000,-250.0,0.00016062,2]
[421729892,1778074232000,-255.0,0.0001603,2]
[421729889,1778074232000,-52336.78,0.00015733,2]
[421729886,1778074232000,-999.99,0.00015733,2]
[421729904,1778074232000,-250.0,0.0001638,2]
[421729939,1778074238000,-3985.08502413,0.00016531,2]
[421729938,1778074238000,-1187.75083997,0.00016531,2]
[421729940,1778074238000,-500.0,0.00016531,2]
[421729937,1778074238000,-2384.91899349,0.00016531,2]
[421729942,1778074238000,-682.45837827,0.00016531,2]
[421729943,1778074238000,-901.16,0.00016531,2]
[421729944,1778074238000,-331.39424204,0.00016531,2]
[421729941,1778074238000,-3778.83298167,0.00016531,2]
[421730030,1778074239000,-1000.0,0.00017956,2]
[421730034,1778074239000,-1000.0,0.00017956,2]
[421730032,1778074239000,-1007.37555556,0.00017956,2]
[421730041,1778074239000,-263.77363519,0.00018026,2]
[421730045,1778074239000,-537.93328249,0.00018026,2]
[421730036,1778074239000,-1024.0,0.00017969,2]
[421730043,1778074239000,-500.0,0.00018026,2]
[421730052,1778074239000,-500.0,0.00018026,2]
[421730047,1778074239000,-500.0,0.00018026,2]
[421730049,1778074239000,-500.0,0.00018026,2]
[421730054,1778074239000,-500.0,0.00018026,2]
[421730062,1778074239000,-1024.0,0.00018397,2]
[421730058,1778074239000,-2351.0,0.00018027,2]
[421730060,1778074239000,-233.38956778,0.00018179,2]
[421730064,1778074239000,-890.2,0.0001841,2]
[421730068,1778074239000,-1500.0,0.00018504,2]
[421730056,1778074239000,-606.10305074,0.00018026,2]
[421730071,1778074239000,-736.0,0.00018563,2]
[421730066,1778074239000,-1500.0,0.00018504,2]
[421730072,1778074239000,-1024.0,0.00018825,2]
[421730079,1778074239000,-500.0,0.00019178,2]
[421730077,1778074239000,-985.83123727,0.00019052,2]
[421730075,1778074239000,-965.30571079,0.00019052,2]
[421730085,1778074239000,-500.0,0.00019178,2]
[421730039,1778074239000,-350.0,0.00018,2]
[421730097,1778074239000,-3000.0,0.00019545,2]
[421730028,1778074239000,-900.0,0.00017928,2]
[421729983,1778074239000,-473.52157341,0.00016631,2]
[421730020,1778074239000,-162.32,0.00017721,2]
[421730093,1778074239000,-162.32,0.00019332,2]
[421729968,1778074239000,-22071.57232156,0.00016531,2]
[421729970,1778074239000,-473.52157341,0.00016531,2]
[421729972,1778074239000,-2319.72410669,0.00016535,2]
[421729974,1778074239000,-900.0,0.00016558,2]
[421729976,1778074239000,-500.0,0.00016573,2]
[421729989,1778074239000,-2405.55389864,0.00017083,2]
[421729993,1778074239000,-782.82467916,0.00017121,2]
[421729991,1778074239000,-1024.0,0.00017114,2]
[421729996,1778074239000,-433.0,0.00017252,2]
[421729981,1778074239000,-500.0,0.00016573,2]
[421729984,1778074239000,-175.33,0.00016712,2]
[421730026,1778074239000,-270.08,0.000179,2]
[421729998,1778074239000,-211.0,0.00017329,2]
[421729978,1778074239000,-501.30095539,0.00016573,2]
[421730000,1778074239000,-500.0,0.00017408,2]
[421730002,1778074239000,-500.0,0.00017408,2]
[421730007,1778074239000,-500.0,0.00017408,2]
[421730009,1778074239000,-572.63857253,0.00017408,2]
[421730015,1778074239000,-1024.0,0.00017541,2]
[421730004,1778074239000,-500.0,0.00017408,2]
[421730013,1778074239000,-500.0,0.00017408,2]
[421730011,1778074239000,-500.0,0.00017408,2]
[421730024,1778074239000,-204.33,0.000179,2]
[421730022,1778074239000,-347.45,0.000179,2]
[421730018,1778074239000,-2494.55939289,0.00017631,2]
[421729986,1778074239000,-473.52157341,0.00016731,2]
[421730091,1778074239000,-2829.34381942,0.00019316,2]
[421730145,1778074239000,-500.0,0.0002119,2]
[421730089,1778074239000,-500.0,0.00019267,2]
[421730155,1778074239000,-6130.07,0.00021273,2]
[421730153,1778074239000,-658.04,0.00021273,2]
[421730158,1778074239000,-1296.40463895,0.00021458,2]
[421730168,1778074239000,-1000.0,0.00021738,2]
[421730170,1778074239000,-1001.25123235,0.00021738,2]
[421730174,1778074239000,-164.82858637,0.000219,2]
[421730172,1778074239000,-4609.0,0.00021812,2]
[421730160,1778074239000,-185.12673,0.00021479,7]
[421730176,1778074239000,-5000.0,0.00021918,2]
[421730164,1778074239000,-349.033913,0.00021479,2]
[421730166,1778074239000,-2129.0,0.00021483,2]
[421730162,1778074239000,-186.478838,0.00021479,7]
[421730151,1778074239000,-500.0,0.0002119,2]
[421730179,1778074239000,-1000.0,0.00021918,5]
[421730189,1778074239000,-2829.34381942,0.00022197,2]
[421730197,1778074239000,-890.2,0.00022353,2]
[421730185,1778074239000,-207.86895535,0.00021943,2]
[421730201,1778074239000,-150.0,0.00022471,2]
[421730183,1778074239000,-160.0,0.00021943,2]
[421730203,1778074239000,-500.0,0.00022471,2]
[421730193,1778074239000,-164.82858637,0.000222,2]
[421730195,1778074239000,-1500.0,0.00022286,2]
[421730205,1778074239000,-162.32,0.00022554,2]
[421730095,1778074239000,-500.0,0.00019477,2]
[421730199,1778074239000,-164.82858637,0.000224,2]
[421730207,1778074239000,-2000.0,0.00022834,2]
[421730181,1778074239000,-214.60306816,0.00021943,2]
[421730137,1778074239000,-332.0,0.00020854,2]
[421730187,1778074239000,-163.0,0.00022,2]
[421730147,1778074239000,-500.0,0.0002119,2]
[421730081,1778074239000,-500.0,0.00019178,2]
[421730149,1778074239000,-500.0,0.0002119,2]
[421730083,1778074239000,-500.0,0.00019178,2]
[421730087,1778074239000,-500.0,0.00019178,2]
[421730101,1778074239000,-250.0,0.00019676,2]
[421730103,1778074239000,-450.37920875,0.00019765,2]
[421730105,1778074239000,-1000.0,0.00019815,2]
[421730109,1778074239000,-254.63558082,0.00019846,2]
[421730113,1778074239000,-167.0,0.0002,2]
[421730111,1778074239000,-1252.0,0.00019963,2]
[421730115,1778074239000,-163.0,0.0002,2]
[421730107,1778074239000,-3292.0,0.00019829,2]
[421730121,1778074239000,-313.46424367,0.00020214,2]
[421730099,1778074239000,-11082.87,0.00019546,2]
[421730119,1778074239000,-500.14771271,0.00020046,2]
[421730127,1778074239000,-1500.0,0.00020363,2]
[421730123,1778074239000,-500.0,0.00020214,2]
[421730125,1778074239000,-501.05799506,0.00020214,2]
[421730129,1778074239000,-890.2,0.00020381,2]
[421730131,1778074239000,-738.40101041,0.00020473,2]
[421730141,1778074239000,-162.32,0.00020943,2]
[421730133,1778074239000,-769.92911676,0.00020473,2]
[421730143,1778074239000,-163.0,0.00021,2]
[421730139,1778074239000,-2000.0,0.00020911,2]
[421730135,1778074239000,-408.20814367,0.00020762,2]
[421730117,1778074239000,-9277.0,0.0002,2]
[421730263,1778074240000,-313.910179,0.00024845,2]
[421730260,1778074240000,-500.0,0.00024845,2]
[421730253,1778074240000,-517.65628542,0.00024845,2]
[421730254,1778074240000,-500.0,0.00024845,2]
[421730257,1778074240000,-500.43861517,0.00024845,2]
[421730266,1778074240000,-500.0,0.00024845,2]
[421730264,1778074240000,-500.0,0.00024845,2]
[421730255,1778074240000,-500.0,0.00024845,2]
[421730258,1778074240000,-500.0,0.00024845,2]
[421730259,1778074240000,-500.0,0.00024845,2]
[421730270,1778074240000,-398.36349468,0.00024999,2]
[421730261,1778074240000,-163.68234244,0.00024845,2]
[421730268,1778074240000,-500.0,0.00024845,2]
[421730278,1778074240000,-260.96,0.00025209,2]
[421730274,1778074240000,-254.29,0.00025158,2]
[421730273,1778074240000,-157.70272892,0.00025078,2]
[421730272,1778074240000,-2671.6410905,0.00025078,2]
[421730277,1778074240000,-229.62,0.00025209,2]
[421730271,1778074240000,-165.0,0.00025,2]
[421730275,1778074240000,-2000.0,0.00025209,2]
[421730269,1778074240000,-3318.0,0.0002488,2]
[421730256,1778074240000,-521.03068147,0.00024845,2]
[421730276,1778074240000,-200.0,0.00025209,2]
[421730262,1778074240000,-500.0,0.00024845,2]
[421730252,1778074240000,-366.59660479,0.00024845,2]
[421730231,1778074240000,-890.2,0.00024324,2]
[421730237,1778074240000,-1000.0,0.00024658,25]
[421730279,1778074240000,-650.0,0.00025211,2]
[421730208,1778074240000,-163.0,0.00023,2]
[421730211,1778074240000,-253.55632653,0.00023019,2]
[421730213,1778074240000,-250.0,0.00023019,2]
[421730215,1778074240000,-3620.0,0.00023122,2]
[421730221,1778074240000,-350.0,0.00023567,2]
[421730219,1778074240000,-2500.0,0.00023382,2]
[421730217,1778074240000,-1000.0,0.00023288,15]
[421730223,1778074240000,-1869.28734531,0.0002393,2]
[421730225,1778074240000,-6453.0,0.00023993,2]
[421730229,1778074240000,-450.37920875,0.00024291,2]
[421730249,1778074240000,-492.59344334,0.00024845,2]
[421730228,1778074240000,-162.32,0.00024165,2]
[421730227,1778074240000,-450.0,0.00024115,2]
[421730243,1778074240000,-163.03,0.00024658,2]
[421730245,1778074240000,-157.22,0.00024658,2]
[421730247,1778074240000,-175.33,0.00024844,2]
[421730251,1778074240000,-500.0,0.00024845,2]
[421730235,1778074240000,-600.324983,0.00024582,14]
[421730248,1778074240000,-500.0,0.00024845,2]
[421730239,1778074240000,-1000.0,0.00024658,2]
[421730250,1778074240000,-409.67569187,0.00024845,2]
[421730241,1778074240000,-160.67,0.00024658,2]
[421730246,1778074240000,-550.0,0.00024663,2]
[421730226,1778074240000,-163.0,0.00024,2]
[421730290,1778074240000,-1000.0,0.00025393,2]
[421730233,1778074240000,-264.66232,0.00024582,14]
[421730286,1778074240000,-195.85164586,0.00025393,2]
[421730307,1778074240000,-1500.0,0.00025941,2]
[421730310,1778074240000,-1000.0,0.00026027,35]